bitfinex/quotes_BTCUSD_20240620
["timestamp","ask_amount","ask_price","bid_price","bid_amount"]
[1718883208738,0.09829643,66520.0,66510.0,0.5722]
[1718883209272,0.060272,66518.0,66510.0,0.5722]
[1718883209470,0.060272,66518.0,66510.0,0.6722]
[1718883209625,0.09829643,66520.0,66512.0,0.1]
[1718883210145,0.17256643,66520.0,66513.0,0.1]
[1718883210352,0.009,66512.0,66510.0,0.5732]
[1718883210546,0.009,66512.0,66510.0,0.5722]
[1718883210914,0.1,66519.0,66512.0,0.001]
[1718883211114,0.1,66519.0,66512.0,0.002]
[1718883211720,0.1,66519.0,66512.0,0.001]
[1718883212060,0.1793,66513.0,66512.0,0.002]
[1718883212494,0.1,66513.0,66512.0,0.001]
[1718883212873,0.09914087,66513.0,66512.0,0.001]
[1718883213072,0.09914087,66513.0,66512.0,0.6867]
[1718883213476,0.0253104,66520.0,66515.0,0.1]
[1718883213637,0.060267,66523.0,66515.0,0.1]
[1718883213841,0.060267,66523.0,66517.0,0.1]
[1718883214041,0.20440993,66527.0,66517.0,0.1]
[1718883214246,0.060266,66526.0,66517.0,0.1]
[1718883214647,0.014,66520.0,66517.0,0.1]
[1718883214847,0.014,66520.0,66515.0,0.001]
[1718883215277,0.160266,66526.0,66513.0,0.1]
[1718883215484,0.160266,66526.0,66512.0,0.6657]
[1718883215485,0.1793,66522.0,66512.0,0.6657]
[1718883215681,0.07628172,66518.0,66515.0,0.001]
[1718883215857,0.1793,66517.0,66515.0,0.001]
[1718883216063,0.25817284,66516.0,66503.0,0.05]
[1718883216289,0.1793,66505.0,66503.0,0.05]
[1718883216484,0.1,66504.0,66503.0,0.05]
[1718883216690,0.1,66504.0,66503.0,0.6351]
[1718883217480,0.1,66509.0,66503.0,0.6351]
[1718883217595,0.1,66509.0,66503.0,0.6361]
[1718883218211,0.09914087,66509.0,66503.0,0.6351]
[1718883218665,0.003,66504.0,66503.0,0.6351]
[1718883219110,0.003,66504.0,66503.0,0.05]
[1718883219474,0.003,66504.0,66490.0,0.2507]
[1718883219475,0.33786112,66504.0,66490.0,0.2507]
[1718883219734,0.1793,66496.0,66491.0,0.05]
[1718883220233,0.1,66495.0,66490.0,0.2634]
[1718883221216,0.1,66495.0,66491.0,0.01717402]
[1718883221425,0.001,66496.0,66491.0,0.01717402]
[1718883221426,0.0906891,66496.0,66491.0,0.01717402]
[1718883221777,0.0896891,66496.0,66491.0,0.01017402]
[1718883221980,0.0896891,66495.0,66491.0,0.01017402]
[1718883222391,0.0896891,66494.0,66489.0,0.337093]
[1718883222590,0.0896891,66494.0,66492.0,0.0101734]
[1718883222793,0.0896891,66494.0,66493.0,0.01016725]
[1718883223200,0.08999939,66494.0,66491.0,0.006]
[1718883223400,0.09001768,66492.0,66491.0,0.006]
[1718883223603,0.09001768,66492.0,66489.0,0.009493]
[1718883223809,0.19001768,66493.0,66490.0,0.006]
[1718883224010,0.1,66493.0,66492.0,0.004]
[1718883224221,0.25256112,66493.0,66491.0,0.000946]
[1718883224437,0.38709478,66493.0,66491.0,0.000946]
[1718883224645,0.13553366,66492.0,66491.0,0.010946]
[1718883224849,0.23553366,66492.0,66491.0,0.010946]
[1718883225178,0.3106006,66492.0,66486.0,0.009493]
[1718883225381,0.13505903,66487.0,66475.0,0.2616]
[1718883225588,0.25256112,66486.0,66477.0,0.05]
[1718883226211,0.25256112,66486.0,66478.0,0.05]
[1718883226632,0.25256112,66486.0,66479.0,0.05]
[1718883226633,0.1,66486.0,66479.0,0.05]
[1718883226805,0.1,66487.0,66479.0,0.05]
[1718883227010,0.014,66493.0,66479.0,0.05]
[1718883227011,0.014,66486.0,66479.0,0.05]
[1718883227241,0.23505903,66490.0,66479.0,0.05]
[1718883227388,0.23505903,66490.0,66484.0,0.010493]
[1718883227389,0.013,66486.0,66484.0,0.010493]
[1718883227595,0.025,66486.0,66484.0,0.010493]
[1718883228049,0.012,66486.0,66484.0,0.009493]
[1718883228435,0.012,66486.0,66484.0,0.010493]
[1718883228839,0.012,66486.0,66485.0,0.01021643]
[1718883229231,0.20849801,66486.0,66485.0,0.01021643]
[1718883229430,0.26456112,66486.0,66484.0,0.010493]
[1718883229791,0.43186112,66485.0,66484.0,0.009493]
[1718883230107,0.43186112,66485.0,66484.0,0.010493]
[1718883230513,0.43186112,66485.0,66484.0,0.009493]
[1718883230940,0.43186112,66485.0,66484.0,0.010493]
[1718883231339,0.50364249,66485.0,66484.0,0.009493]
[1718883231558,0.80364249,66485.0,66484.0,0.009493]
[1718883232194,0.81564249,66485.0,66484.0,0.010493]
[1718883232397,0.82764249,66485.0,66484.0,0.010493]
[1718883232618,0.82764249,66485.0,66467.0,0.009493]
[1718883232619,0.52764249,66485.0,66467.0,0.009493]
[1718883232913,0.1793,66468.0,66467.0,0.009493]
[1718883233118,0.2793,66468.0,66467.0,0.009493]
[1718883233440,0.27843924,66468.0,66467.0,0.009493]
[1718883234487,0.1,66468.0,66467.0,0.009493]
[1718883234669,0.11,66468.0,66467.0,0.009493]
[1718883234867,0.11,66468.0,66459.0,0.009504]
[1718883234868,0.4537859,66468.0,66459.0,0.009504]
[1718883235071,0.1793,66460.0,66458.0,0.009504]
[1718883235280,0.15256112,66459.0,66457.0,0.000946]
[1718883235485,5.20256112,66459.0,66457.0,0.000946]
[1718883235707,0.51263213,66458.0,66457.0,0.000946]
[1718883235908,0.58442623,66458.0,66457.0,0.000946]
[1718883236082,5.51199856,66458.0,66440.0,0.1]
[1718883236282,5.51199856,66458.0,66442.0,0.05]
[1718883236283,0.1793,66445.0,66442.0,0.05]
[1718883236482,0.1793,66445.0,66444.0,0.01048278]
[1718883236707,0.1793,66445.0,66440.0,0.1]
[1718883236708,0.02680751,66444.0,66440.0,0.1]
[1718883237067,0.12680751,66444.0,66440.0,0.1]
[1718883237342,0.04127086,66443.0,66438.0,4.12883192]
[1718883237539,0.1793,66440.0,66438.0,4.12883192]
[1718883237741,0.1793,66440.0,66439.0,0.05]
[1718883237944,0.08005227,66439.0,66438.0,4.12883192]
[1718883238150,0.18005227,66439.0,66438.0,4.12883192]
[1718883238356,0.18005227,66439.0,66438.0,4.24883192]
[1718883238511,0.1,66439.0,66438.0,4.24883192]
[1718883239320,0.004,66440.0,66439.0,0.1]
[1718883239520,0.009,66444.0,66439.0,0.17628172]
[1718883239722,0.1,66448.0,66439.0,0.17628172]
[1718883240064,0.004,66440.0,66439.0,0.17628172]
[1718883240302,0.1,66448.0,66443.0,0.1]
[1718883240538,0.1,66448.0,66442.0,0.02]
[1718883240539,0.1793,66454.0,66439.0,0.17628172]
[1718883240815,0.03223921,66448.0,66439.0,0.17628172]
[1718883241077,0.1,66453.0,66439.0,0.17628172]
[1718883241556,0.1,66453.0,66447.0,0.1]
[1718883242029,0.1,66453.0,66446.0,0.09628172]
[1718883242030,0.1,66453.0,66446.0,0.17628172]
[1718883242488,0.1,66453.0,66443.0,0.1]
[1718883242689,0.1,66453.0,66442.0,0.1]
[1718883243110,0.114,66453.0,66442.0,0.1]
[1718883243713,0.18329112,66452.0,66438.0,4.12883192]
[1718883243867,0.1793,66449.0,66440.0,0.1]
[1718883244270,0.09828174,66453.0,66446.0,0.17628172]
[1718883244499,0.03099826,66454.0,66447.0,0.3133]
[1718883244673,0.028,66453.0,66447.0,0.3133]
[1718883245075,0.014,66453.0,66449.0,0.1]
[1718883245302,0.03099826,66454.0,66451.0,0.2617]
[1718883245661,0.014,66453.0,66451.0,0.2617]
[1718883246111,0.03099826,66454.0,66451.0,0.2617]
[1718883247890,0.1,66459.0,66452.0,0.1]
[1718883247891,0.014,66453.0,66452.0,0.1]
[1718883248096,0.03089242,66460.0,66459.0,0.1]
[1718883248504,0.060317,66467.0,66459.0,0.1]
[1718883248952,0.5,66469.0,66459.0,0.1]
[1718883249152,0.560316,66469.0,66459.0,0.1]
[1718883249282,0.1,66468.0,66460.0,0.12]
[1718883249654,0.160316,66469.0,66463.0,0.3313]
[1718883249961,0.014,66467.0,66465.0,0.2538]
[1718883250380,0.014,66467.0,66465.0,0.3538]
[1718883250515,0.014,66467.0,66466.0,0.12]
[1718883250953,0.014,66467.0,66465.0,0.2538]
[1718883251157,0.014,66469.0,66467.0,0.11]
[1718883251364,0.1,66477.0,66467.0,0.11]
[1718883251572,0.014,66468.0,66467.0,0.12]
[1718883251774,0.014,66468.0,66465.0,0.2538]
[1718883251979,0.06031,66475.0,66466.0,0.1]
[1718883252338,0.003,66467.0,66466.0,0.12]
[1718883252950,0.06031,66475.0,66466.0,0.12]
[1718883253151,0.06031,66475.0,66465.0,0.2538]
[1718883253152,0.06031,66475.0,66470.0,0.1]
[1718883253352,0.0307348,66478.0,66477.0,0.2464]
[1718883253551,0.1793,66488.0,66477.0,0.2464]
[1718883253807,0.060303,66483.0,66477.0,0.2464]
[1718883254034,0.05858474,66483.0,66477.0,0.2464]
[1718883254435,0.15256112,66487.0,66477.0,0.2464]
[1718883254665,0.003,66478.0,66477.0,0.2464]
[1718883255570,0.01,66483.0,66477.0,0.2464]
[1718883255571,0.02,66483.0,66477.0,0.5606]
[1718883255718,0.02,66483.0,66478.0,0.1]
[1718883256036,0.01,66483.0,66478.0,0.1]
[1718883256290,0.004,66478.0,66477.0,0.5606]
[1718883256470,0.004,66478.0,66477.0,0.6806]
[1718883257638,0.01,66483.0,66479.0,0.1]
[1718883257864,0.1,66488.0,66479.0,0.1]
[1718883258064,0.01,66483.0,66479.0,0.1]
[1718883258267,0.01086,66483.0,66479.0,0.1]
[1718883258473,0.00086,66483.0,66479.0,0.1]
[1718883258912,0.01000087,66483.0,66479.0,0.1]
[1718883259297,0.02000087,66483.0,66479.0,0.1]
[1718883260119,0.02000087,66483.0,66478.0,0.1]
[1718883260294,0.02000087,66483.0,66481.0,0.1]
[1718883260511,0.02000087,66483.0,66479.0,0.1]
[1718883260881,0.01000087,66483.0,66479.0,0.1]
[1718883261157,0.01000087,66483.0,66477.0,0.5606]
[1718883261158,8.7e-07,66483.0,66477.0,0.5606]
[1718883261389,0.01000087,66483.0,66479.0,0.1]
[1718883261838,0.02000087,66483.0,66477.0,0.5606]
[1718883262036,8.7e-07,66483.0,66478.0,0.023]
[1718883262373,0.01000087,66483.0,66478.0,0.023]
[1718883263618,0.01000087,66483.0,66471.0,0.5833]
[1718883263872,0.01000087,66483.0,66472.0,0.023]
[1718883264004,0.01000087,66483.0,66471.0,0.5833]
[1718883264005,0.20952198,66483.0,66471.0,0.5833]
[1718883264401,0.1,66482.0,66476.0,0.1]
[1718883264711,0.1,66482.0,66478.0,0.1]
[1718883264911,0.1,66482.0,66480.0,0.1]
[1718883265121,0.1,66482.0,66481.0,0.1]
[1718883265327,0.1,66482.0,66481.0,0.2499]
[1718883265528,0.02000087,66483.0,66481.0,0.2499]
[1718883265884,0.02000087,66483.0,66482.0,0.1]
[1718883265885,8.7e-07,66483.0,66482.0,0.1]
[1718883266104,8.7e-07,66483.0,66482.0,0.4022]
[1718883266453,8.7e-07,66483.0,66482.0,0.3022]
[1718883267088,8.7e-07,66483.0,66482.0,0.4022]
[1718883267292,0.34386199,66483.0,66466.0,0.1]
[1718883267450,0.1793,66475.0,66466.0,0.1]
[1718883267649,0.1,66474.0,66464.0,0.6851]
[1718883267956,0.1,66474.0,66466.0,0.1]
[1718883269014,0.1,66474.0,66467.0,0.023]
[1718883269244,0.101,66474.0,66467.0,0.023]
[1718883270489,0.1,66473.0,66467.0,0.023]
[1718883270860,0.20093074,66482.0,66467.0,0.023]
[1718883270990,0.1793,66480.0,66467.0,0.023]
[1718883271196,0.5,66478.0,66467.0,0.023]
[1718883271421,0.33186112,66480.0,66467.0,0.023]
[1718883271617,0.001,66474.0,66467.0,0.023]
[1718883272154,0.33186112,66480.0,66466.0,0.023]
[1718883272364,0.006,66478.0,66466.0,0.023]
[1718883272655,0.012,66478.0,66466.0,0.023]
[1718883272852,0.1793,66475.0,66466.0,0.023]
[1718883273084,0.1,66474.0,66463.0,0.476]
[1718883273579,0.5,66473.0,66461.0,0.023]
[1718883273732,0.1,66472.0,66461.0,0.023]
[1718883274112,0.6,66472.0,66461.0,0.023]
[1718883274314,0.6,66472.0,66455.0,0.05]
[1718883274315,0.1793,66470.0,66456.0,0.2699]
[1718883274537,0.1793,66460.0,66446.0,0.023]
[1718883274737,0.1,66459.0,66447.0,0.023]
[1718883274941,0.1,66459.0,66448.0,0.023]
[1718883275152,0.1,66459.0,66450.0,0.023]
[1718883275347,0.1,66459.0,66448.0,0.07628172]
[1718883275348,0.1,66459.0,66455.0,0.31798172]
[1718883275884,0.1,66459.0,66456.0,0.023]
[1718883276075,0.1,66468.0,66456.0,0.023]
[1718883276444,0.013,66459.0,66455.0,0.31798172]
[1718883277267,0.013,66459.0,66456.0,0.023]
[1718883277712,0.013,66459.0,66458.0,0.043]
[1718883277912,0.5,66467.0,66458.0,0.043]
[1718883278046,0.1,66466.0,66461.0,0.023]
[1718883278424,0.1,66466.0,66464.0,0.023]
[1718883278648,0.1,66466.0,66465.0,0.3191]
[1718883279364,0.03139062,66472.0,66465.0,0.3191]
[1718883279566,0.012,66476.0,66466.0,0.023]
[1718883279784,0.1793,66471.0,66459.0,0.023]
[1718883279978,0.006,66466.0,66460.0,0.244]
[1718883280182,0.006,66466.0,66461.0,0.023]
[1718883280390,0.012,66466.0,66461.0,0.023]
[1718883280633,0.006,66466.0,66461.0,0.023]
[1718883280837,0.006,66466.0,66460.0,0.5462]
[1718883281374,0.1,66470.0,66460.0,0.5462]
[1718883282186,0.1,66470.0,66460.0,0.5692]
[1718883282390,0.1,66470.0,66461.0,0.023]
[1718883282576,0.111,66470.0,66461.0,0.023]
[1718883282778,0.006,66466.0,66461.0,0.023]
[1718883283676,0.111,66470.0,66461.0,0.023]
[1718883283981,0.111,66470.0,66460.0,0.5662]
[1718883283982,0.006,66466.0,66464.0,0.023]
[1718883285798,0.006,66466.0,66465.0,0.32738172]
[1718883285799,0.012,66466.0,66465.0,0.32738172]
[1718883286099,0.012,66466.0,66465.0,0.2941]
[1718883286300,0.012,66466.0,66465.0,0.2511]
[1718883286923,0.006,66466.0,66465.0,0.72318172]
[1718883287119,0.012,66466.0,66465.0,0.74618172]
[1718883287321,0.012,66466.0,66465.0,0.89874284]
[1718883287467,0.012,66466.0,66465.0,0.90874284]
[1718883287668,0.006,66466.0,66465.0,0.90874284]
[1718883287871,0.012,66466.0,66465.0,0.90874284]
[1718883288474,0.006,66466.0,66465.0,0.90874284]
[1718883288675,0.02942443,66476.0,66475.0,0.01]
[1718883288881,0.02942443,66476.0,66475.0,0.6618]
[1718883289082,8.7e-07,66483.0,66482.0,0.023]
[1718883289245,8.7e-07,66483.0,66482.0,0.043]
[1718883289449,8.7e-07,66483.0,66482.0,0.023]
[1718883289872,8.7e-07,66483.0,66477.0,0.023]
[1718883290078,0.23497922,66483.0,66476.0,0.023]
[1718883290279,0.11250106,66477.0,66476.0,0.023]
[1718883290482,0.1,66477.0,66476.0,0.046]
[1718883290677,0.1,66477.0,66471.0,0.023]
[1718883290968,0.0900228,66473.0,66472.0,0.023]
[1718883291168,0.0900228,66473.0,66472.0,0.043]
[1718883291354,0.21252851,66474.0,66472.0,0.043]
[1718883291558,0.21252851,66474.0,66473.0,0.043]
[1718883293230,0.21452851,66474.0,66473.0,0.043]
[1718883293360,0.102,66474.0,66473.0,0.043]
[1718883293565,0.001,66474.0,66473.0,0.043]
[1718883294621,0.1,66478.0,66473.0,0.043]
[1718883294822,0.1,66478.0,66477.0,0.043]
[1718883294977,0.1,66479.0,66478.0,0.023]
[1718883295177,0.1,66479.0,66477.0,0.043]
[1718883295386,0.23497835,66479.0,66477.0,0.043]
[1718883295586,0.23497835,66479.0,66478.0,0.023]
[1718883297905,0.23597835,66479.0,66478.0,0.023]
[1718883298416,0.23497835,66479.0,66478.0,0.023]
[1718883298621,0.23497835,66479.0,66477.0,0.043]
[1718883298823,0.23597835,66479.0,66477.0,0.043]
[1718883299201,0.101,66479.0,66478.0,0.023]
[1718883299583,0.23497835,66479.0,66478.0,0.023]
[1718883300000,0.23597835,66479.0,66478.0,0.023]
[1718883300152,0.101,66479.0,66477.0,0.043]
[1718883300356,0.13512369,66478.0,66477.0,0.043]
[1718883300568,0.23512369,66478.0,66477.0,0.043]
[1718883300771,0.13511841,66478.0,66477.0,0.043]
[1718883300972,0.23511841,66478.0,66477.0,0.043]
[1718883301376,0.23511209,66478.0,66477.0,0.043]
[1718883301976,0.23511905,66478.0,66477.0,0.043]
[1718883303237,0.1,66478.0,66477.0,0.044]
[1718883304357,0.23511905,66478.0,66477.0,0.044]
[1718883304558,0.1,66478.0,66477.0,0.044]
[1718883304759,0.23511905,66478.0,66477.0,0.044]
[1718883304971,0.1,66478.0,66477.0,0.044]
[1718883305720,0.13511905,66482.0,66479.0,0.093]
[1718883305922,0.03088581,66483.0,66477.0,0.001]
[1718883305923,8.7e-07,66483.0,66482.0,0.093]
[1718883306299,8.7e-07,66483.0,66482.0,0.116]
[1718883306895,8.7e-07,66483.0,66482.0,0.046]
[1718883307051,0.10000087,66483.0,66476.0,0.2586]
[1718883307251,0.10100087,66483.0,66482.0,0.002]
[1718883307479,0.43286199,66483.0,66482.0,0.002]
[1718883307685,0.44486199,66483.0,66482.0,0.002]
[1718883307885,5.49486199,66483.0,66482.0,0.002]
[1718883308087,5.63300111,66483.0,66482.0,0.002]
[1718883308709,0.077,66481.0,66465.0,0.2868]
[1718883308916,0.1351269,66470.0,66465.0,0.2868]
[1718883309156,0.1,66469.0,66465.0,0.2868]
[1718883310214,0.1,66469.0,66465.0,0.2928]
[1718883310544,0.1,66469.0,66465.0,0.2888]
[1718883310783,0.13512889,66467.0,66465.0,0.002]
[1718883311133,0.1,66469.0,66465.0,0.002]
[1718883311134,0.1,66466.0,66465.0,0.002]
[1718883311269,0.15202001,66466.0,66465.0,0.002]
[1718883311471,0.1,66466.0,66465.0,0.002]
[1718883311846,0.16180224,66466.0,66458.0,0.023]
[1718883312063,0.1,66466.0,66465.0,0.005]
[1718883312264,0.21239081,66466.0,66465.0,0.005]
[1718883312414,0.47920304,66466.0,66465.0,0.002]
[1718883312615,0.39805955,66466.0,66458.0,0.023]
[1718883312938,0.39805955,66466.0,66455.0,0.000946]
[1718883312939,0.13513896,66459.0,66455.0,0.000946]
[1718883313200,4.25259245,66465.0,66455.0,0.000946]
[1718883313201,0.012,66457.0,66455.0,0.000946]
[1718883313578,0.112,66457.0,66455.0,0.000946]
[1718883313782,0.5,66456.0,66455.0,0.000946]
[1718883313930,0.1,66456.0,66455.0,0.000946]
[1718883314132,0.6,66456.0,66455.0,0.000946]
[1718883314388,0.1,66456.0,66455.0,0.000946]
[1718883314565,0.25203133,66456.0,66455.0,0.00089834]
[1718883314740,0.1,66456.0,66455.0,0.00089834]
[1718883315145,0.25203133,66456.0,66455.0,0.00089834]
[1718883315373,0.1,66456.0,66455.0,0.00089834]
[1718883315779,0.25203133,66456.0,66455.0,0.00089834]
[1718883315955,0.1,66456.0,66455.0,0.00089834]
[1718883316156,0.1,66456.0,66455.0,0.00189834]
[1718883316561,1.10503431,66456.0,66455.0,0.00289834]
[1718883316765,1.10503431,66456.0,66455.0,0.00489834]
[1718883316974,1.11703431,66456.0,66455.0,0.00489834]
[1718883317167,0.43367383,66456.0,66455.0,0.00489834]
[1718883317399,0.43367383,66456.0,66438.0,3.87533192]
[1718883317400,0.05,66448.0,66438.0,3.78982638]
[1718883317634,0.05,66448.0,66438.0,3.78720899]
[1718883317843,0.1793,66439.0,66438.0,3.78720899]
[1718883318058,0.2793,66439.0,66438.0,3.78720899]
[1718883318291,0.43123019,66439.0,66438.0,3.75727899]
[1718883318468,5.3293,66439.0,66438.0,3.75727899]
[1718883318669,2.42425193,66439.0,66438.0,3.75727899]
[1718883318990,5.59425193,66439.0,66438.0,3.75727899]
[1718883319441,5.40006416,66439.0,66438.0,3.75727899]
[1718883319637,0.68650304,66439.0,66438.0,3.75727899]
[1718883319749,1.32811223,66439.0,66438.0,3.75727899]
[1718883319958,1.6155688,66439.0,66438.0,3.75727899]
[1718883320173,3.19267335,66439.0,66438.0,3.75727899]
[1718883320407,3.32206416,66439.0,66438.0,3.75727899]
[1718883320843,2.90269081,66439.0,66438.0,3.75727899]
[1718883321043,2.00269081,66439.0,66438.0,3.75727899]
[1718883321261,0.7063,66439.0,66438.0,3.75727899]
[1718883321463,0.7922928,66439.0,66438.0,3.75727899]
[1718883321646,0.7063,66439.0,66438.0,3.75727899]
[1718883321861,0.7203,66439.0,66438.0,3.75727899]
[1718883322082,0.4503,66439.0,66438.0,3.75727899]
[1718883322284,0.114,66439.0,66438.0,3.75727899]
[1718883322533,0.128,66439.0,66438.0,3.75727899]
[1718883322752,0.5943,66439.0,66438.0,3.75727899]
[1718883322906,0.2933,66439.0,66438.0,3.75727899]
[1718883323116,0.54886112,66439.0,66438.0,3.75822499]
[1718883323434,0.45786112,66439.0,66438.0,3.75822499]
[1718883323578,0.54486112,66439.0,66438.0,3.75822499]
[1718883323777,0.6707504,66439.0,66438.0,3.75822499]
[1718883323984,5.7107504,66439.0,66438.0,3.75822499]
[1718883324425,5.6477504,66439.0,66438.0,3.75822499]
[1718883324686,5.88773694,66439.0,66438.0,3.75822499]
[1718883325012,3.58773694,66439.0,66438.0,3.75822499]
[1718883325214,3.60173694,66439.0,66438.0,3.75822499]
[1718883325418,2.10817582,66439.0,66438.0,3.75822499]
[1718883325620,2.03884018,66439.0,66438.0,3.75822499]
[1718883325852,1.91058907,66439.0,66438.0,3.75822499]
[1718883326059,1.97237642,66439.0,66438.0,3.75822499]
[1718883326235,1.93995713,66439.0,66438.0,3.75822499]
[1718883326832,1.95395713,66439.0,66438.0,3.75822499]
[1718883327237,1.96795713,66439.0,66438.0,3.75822499]
[1718883327635,1.78939601,66439.0,66438.0,3.75822499]
[1718883327857,1.80339601,66439.0,66438.0,3.75822499]
[1718883328223,1.93851298,66439.0,66438.0,3.75822499]
[1718883328437,2.01681674,66439.0,66438.0,3.65822499]
[1718883328801,2.03081674,66439.0,66438.0,3.65822499]
[1718883329248,2.01681674,66439.0,66438.0,3.65822499]
[1718883329411,2.00281674,66439.0,66438.0,3.65822499]
[1718883329631,2.16937088,66439.0,66438.0,3.65822499]
[1718883329817,2.03081674,66439.0,66438.0,3.65822499]
[1718883330221,2.04481674,66439.0,66438.0,3.59222499]
[1718883330900,1.78851674,66439.0,66438.0,3.59222499]
[1718883331023,1.96781674,66439.0,66438.0,3.59222499]
[1718883331440,1.95581674,66439.0,66438.0,3.59222499]
[1718883331640,1.95581674,66439.0,66438.0,3.60385404]
[1718883331641,1.93851298,66439.0,66438.0,3.60385404]
[1718883331893,1.78595186,66439.0,66438.0,3.60385404]
[1718883332118,1.78595186,66439.0,66438.0,3.44704404]
[1718883332119,1.96360625,66439.0,66438.0,3.44704404]
[1718883332332,1.96360625,66439.0,66438.0,3.42150404]
[1718883332333,2.07006423,66439.0,66438.0,3.42150404]
[1718883332530,2.04497096,66439.0,66438.0,3.42150404]
[1718883332721,2.03097096,66439.0,66438.0,3.42150404]
[1718883332925,1.95397096,66439.0,66438.0,3.42150404]
[1718883333243,1.96797096,66439.0,66438.0,3.42150404]
[1718883333659,1.95397096,66439.0,66438.0,3.42150404]
[1718883334404,1.96797096,66439.0,66438.0,3.42150404]
[1718883334663,1.77667096,66439.0,66438.0,3.42150404]
[1718883335107,1.95597096,66439.0,66438.0,3.42150404]
[1718883335278,1.75921298,66439.0,66438.0,3.42150404]
[1718883335485,1.93851298,66439.0,66438.0,3.42150404]
[1718883337118,1.98469518,66439.0,66438.0,3.42150404]
[1718883339137,1.97069518,66439.0,66438.0,3.42150404]
[1718883339343,1.94269518,66439.0,66438.0,3.42150404]
[1718883339588,1.94269518,66439.0,66438.0,3.41950404]
[1718883339589,0.73414954,66439.0,66438.0,3.41950404]
[1718883339935,2.34183406,66439.0,66438.0,3.41950404]
[1718883340142,0.30287777,66439.0,66438.0,3.41950404]
[1718883340344,0.20383406,66439.0,66438.0,4.04630404]
[1718883340474,0.04356515,66439.0,66438.0,4.04630404]
[1718883340673,0.05756515,66439.0,66438.0,4.04630404]
[1718883340889,0.07156515,66439.0,66438.0,4.04630404]
[1718883341107,0.05756515,66439.0,66438.0,4.00330404]
[1718883341522,0.05756515,66439.0,66438.0,4.04630404]
[1718883342508,0.02956515,66439.0,66438.0,4.04630404]
[1718883342735,0.5,66442.0,66438.0,4.04630404]
[1718883342936,0.5,66442.0,66441.0,0.029]
[1718883343148,0.465,66442.0,66441.0,0.015]
[1718883343311,0.43,66442.0,66441.0,0.02551454]
[1718883343511,0.358,66442.0,66441.0,0.02551454]
[1718883343816,0.1,66442.0,66441.0,0.02551454]
[1718883344130,0.114,66442.0,66441.0,0.02551454]
[1718883344328,0.028,66442.0,66441.0,0.02551454]
[1718883344495,0.014,66442.0,66441.0,0.02551454]
[1718883344704,0.014,66442.0,66441.0,0.07551454]
[1718883344904,0.014,66442.0,66441.0,0.09851454]
[1718883345104,0.014,66442.0,66441.0,0.67221454]
[1718883346001,0.028,66442.0,66441.0,0.60021454]
[1718883346712,0.02883924,66444.0,66441.0,0.59921454]
[1718883346878,0.02883924,66444.0,66443.0,0.015]
[1718883347103,0.18867481,66448.0,66444.0,0.015]
[1718883347316,0.18867481,66448.0,66445.0,0.01049743]
[1718883347485,0.18867481,66448.0,66444.0,0.015]
[1718883347693,0.18867481,66448.0,66445.0,0.01049743]
[1718883348121,0.18867481,66448.0,66446.0,0.015]
[1718883348330,0.18867481,66448.0,66446.0,0.02549484]
[1718883348542,0.18867481,66448.0,66447.0,0.015]
[1718883348730,0.12834081,66448.0,66447.0,0.66737397]
[1718883348952,0.1793,66461.0,66454.0,0.015]
[1718883349275,0.33186112,66461.0,66456.0,0.3059]
[1718883349612,0.060325,66460.0,66457.0,0.01308074]
[1718883349816,0.060325,66460.0,66456.0,0.3059]
[1718883350018,0.060325,66460.0,66458.0,0.010462]
[1718883350217,0.060325,66460.0,66456.0,0.3059]
[1718883350218,0.060325,66460.0,66457.0,0.01308074]
[1718883350541,0.160325,66460.0,66458.0,0.010462]
[1718883351061,0.160325,66460.0,66459.0,0.01045941]
[1718883351202,0.060325,66460.0,66459.0,0.01045941]
[1718883351402,0.072325,66460.0,66458.0,0.001]
[1718883351790,0.182325,66460.0,66459.0,0.01045941]
[1718883352935,3.55503065,66460.0,66459.0,0.01045941]
[1718883353136,3.65012808,66460.0,66458.0,0.002]
[1718883353437,5.29765855,66459.0,66458.0,0.001]
[1718883353645,5.55021269,66459.0,66447.0,0.5448]
[1718883353842,0.1793,66452.0,66447.0,0.5448]
[1718883354052,0.1,66451.0,66448.0,0.01179758]
[1718883354254,1.129,66451.0,66448.0,0.01179758]
[1718883354467,0.5,66450.0,66448.0,0.01179758]
[1718883354696,0.5,66450.0,66443.0,0.5976]
[1718883354697,0.1,66449.0,66443.0,0.5976]
[1718883354906,0.19509743,66449.0,66443.0,0.5976]
[1718883355109,0.5,66448.0,66443.0,0.5976]
[1718883355310,0.2793,66447.0,66443.0,0.5976]
[1718883355512,0.7793,66447.0,66439.0,0.2514]
[1718883355707,0.87439743,66447.0,66439.0,0.2514]
[1718883355907,5.42439743,66447.0,66439.0,0.2514]
[1718883356114,0.09509743,66446.0,66439.0,0.2514]
[1718883356315,5.09309743,66446.0,66439.0,0.2514]
[1718883356622,0.96190966,66445.0,66439.0,0.2514]
[1718883356822,4.50390966,66445.0,66439.0,0.2514]
[1718883357138,0.09509743,66444.0,66439.0,0.2514]
[1718883357366,3.20209743,66444.0,66439.0,0.2514]
[1718883357566,0.69509743,66443.0,66439.0,0.2514]
[1718883358090,3.10009743,66443.0,66439.0,0.2524]
[1718883358291,0.09509743,66442.0,66439.0,0.2534]
[1718883358496,0.09509743,66442.0,66439.0,0.2524]
[1718883358706,0.09509743,66442.0,66439.0,0.2514]
[1718883358941,0.1,66443.0,66439.0,0.2514]